bitfinex-derivatives/quotes_SOLF0:USTF0_20250901
["timestamp","ask_amount","ask_price","bid_price","bid_amount"]
[1756684801748,12.83310187,200.82,200.63,7.37]
[1756684801943,7.41,200.8,200.63,7.37]
[1756684802143,12.83310187,200.8,200.63,7.37]
[1756684802345,7.41,200.8,200.63,7.37]
[1756684802948,7.41,200.8,200.6,4.18546232]
[1756684803142,12.83310187,200.8,200.59,4.18546232]
[1756684803449,12.83310187,200.8,200.58,4.18546232]
[1756684803750,7.41,200.8,200.6,4.18546232]
[1756684804141,7.41,200.8,200.61,4.18546232]
[1756684804338,7.41,200.8,200.59,4.18546232]
[1756684804747,7.41,200.8,200.6,7.37]
[1756684805448,7.41,200.78,200.6,7.37]
[1756684806239,12.83310187,200.78,200.6,7.37]
[1756684806444,7.41,200.78,200.6,7.37]
[1756684807243,7.41,200.76,200.6,7.37]
[1756684807646,5.42310187,200.75,200.56,7.37]
[1756684807841,12.83310187,200.74,200.56,7.37]
[1756684808039,12.83310187,200.74,200.49,5.58061643]
[1756684808040,5.42310187,200.72,200.53,7.31]
[1756684808345,8.06,200.7,200.53,7.31]
[1756684808539,8.06,200.7,200.48,4.18546232]
[1756684808540,5.42310187,200.69,200.49,7.31]
[1756684808746,8.06,200.67,200.49,7.31]
[1756684808951,4.9,200.66,200.49,7.31]
[1756684809251,8.06,200.64,200.49,7.31]
[1756684809451,8.06,200.64,200.45,4.18546232]
[1756684809452,8.06,200.64,200.43,4.18546232]
[1756684809750,8.06,200.64,200.44,7.31]
[1756684809751,5.42310187,200.63,200.44,7.31]
[1756684809952,8.06,200.62,200.44,7.31]
[1756684810953,8.06,200.6,200.36,7.31]
[1756684811150,13.48310187,200.6,200.36,7.31]
[1756684811344,8.06,200.6,200.36,7.31]
[1756684811548,8.06,200.58,200.36,7.31]
[1756684813355,8.06,200.56,200.36,7.31]
[1756684813850,5.42310187,200.61,200.36,7.31]
[1756684813851,17.8,200.55,200.36,7.31]
[1756684814150,8.06,200.54,200.36,7.31]
[1756684815252,22.99,200.54,200.21,4.18546232]
[1756684815554,22.99,200.54,200.22,7.31]
[1756684816046,37.92,200.54,200.22,7.31]
[1756684816648,14.93,200.5,200.22,7.31]
[1756684816852,8.06,200.48,200.22,7.31]
[1756684817355,8.06,200.46,200.22,7.31]
[1756684817957,125.56,200.45,200.22,7.31]
[1756684818258,8.06,200.63,200.22,7.31]
[1756684818456,8.06,200.55,200.22,7.31]
[1756684818756,335.22,200.56,200.17,340.62061643]
[1756684818757,8.06,200.53,200.24,7.31]
[1756684819451,8.06,200.53,200.25,55.64]
[1756684819653,8.06,200.53,200.26,7.31]
[1756684819852,8.06,200.51,200.26,7.31]
[1756684820653,4.22,200.5,200.26,7.31]
[1756684820957,4.22,200.5,200.28,7.31]
[1756684821152,8.06,200.55,200.28,7.31]
[1756684821353,11.94,200.52,200.28,7.31]
[1756684822150,20.0,200.52,200.3,7.31]
[1756684822348,20.0,200.52,200.31,4.16]
[1756684822558,20.0,200.52,200.32,7.31]
[1756684825960,20.0,200.52,200.26,56.44]
[1756684825961,8.06,200.49,200.26,7.31]
[1756684826261,22.99,200.45,200.26,7.31]
[1756684826664,8.06,200.43,200.26,7.31]
[1756684826862,8.06,200.41,200.26,7.31]
[1756684827859,8.06,200.39,200.26,7.31]
[1756684829159,335.3,200.42,200.26,7.31]
[1756684829354,45.9,200.41,200.26,7.31]
[1756684829767,335.3,200.42,200.26,7.31]
[1756684830063,126.8,200.41,200.26,7.31]
[1756684831366,335.3,200.42,200.26,7.31]
[1756684831566,126.76,200.41,200.26,7.31]
[1756684832365,8.06,200.4,200.26,7.31]
[1756684833762,56.54,200.4,200.26,7.31]
[1756684833957,8.06,200.38,200.14,7.31]
[1756684834564,8.06,200.36,200.14,7.31]
[1756684834769,84.6,200.35,200.14,7.31]
[1756684835069,8.06,200.34,200.14,7.31]
[1756684835272,57.8,200.33,200.14,7.31]
[1756684835774,8.06,200.32,200.14,7.31]
[1756684838875,1.04,200.31,200.14,7.31]
[1756684839075,1.54,200.3,200.14,7.31]
[1756684840277,8.06,200.32,200.14,7.31]
[1756684840577,10.5,200.32,200.14,7.31]
[1756684840777,8.06,200.32,200.14,7.31]
[1756684840976,1.36,200.31,200.14,7.31]
[1756684841178,9.78,200.32,200.14,7.31]
[1756684841581,7.56,200.41,200.14,7.31]
[1756684841778,7.56,200.41,200.15,7.92]
[1756684841779,1.3,200.4,200.15,7.92]
[1756684842076,7.56,200.39,200.16,7.92]
[1756684842380,7.56,200.39,200.18,7.92]
[1756684843377,7.56,200.39,200.19,7.92]
[1756684844476,7.56,200.39,200.2,7.92]
[1756684845780,127.66,200.43,200.22,7.92]
[1756684846284,127.66,200.43,200.22,12.10546232]
[1756684846480,127.66,200.43,200.22,4.18546232]
[1756684846677,127.66,200.43,200.23,7.92]
[1756684846979,127.66,200.43,200.25,7.92]
[1756684847483,7.56,200.42,200.25,7.92]
[1756684849279,7.56,200.42,200.25,4.18546232]
[1756684849487,7.56,200.42,200.26,7.92]
[1756684850482,7.56,200.42,200.27,7.92]
[1756684850688,335.5,200.45,200.28,12.10546232]
[1756684850886,335.5,200.45,200.3,7.92]
[1756684851182,7.56,200.47,200.31,7.92]
[1756684851380,7.56,200.47,200.33,7.92]
[1756684851782,7.56,200.47,200.34,7.92]
[1756684852283,7.56,200.47,200.34,12.10546232]
[1756684852484,335.44,200.57,200.35,7.92]
[1756684852792,38.94,200.56,200.36,7.92]
[1756684853385,7.56,200.54,200.37,7.92]
[1756684854293,7.56,200.54,200.37,12.10546232]
[1756684854786,127.34,200.55,200.37,12.10546232]
[1756684855184,7.56,200.54,200.37,12.10546232]
[1756684855384,127.34,200.55,200.37,12.10546232]
[1756684855688,7.56,200.54,200.37,12.10546232]
[1756684855982,127.34,200.55,200.37,12.10546232]
[1756684856380,7.56,200.54,200.37,4.18546232]
[1756684856684,7.56,200.54,200.38,7.92]
[1756684858379,7.56,200.52,200.38,7.92]
[1756684860595,7.56,200.52,200.39,7.92]
[1756684862086,7.56,200.52,200.35,7.92]
[1756684862291,7.56,200.52,200.35,12.10546232]
[1756684862590,7.56,200.53,200.36,7.92]
[1756684863093,7.56,200.53,200.37,4.18546232]
[1756684863288,7.56,200.53,200.39,7.92]
[1756684864095,7.56,200.53,200.4,7.92]
[1756684868694,7.56,200.53,200.37,4.18546232]
[1756684868897,7.58,200.56,200.36,7.75]
[1756684869097,7.58,200.52,200.36,7.75]
[1756684869299,7.58,200.5,200.36,7.75]
[1756684876610,60.46,200.5,200.36,7.75]
[1756684876798,7.58,200.5,200.36,7.75]
[1756684878804,7.58,200.5,200.32,7.75]
[1756684879210,7.58,200.48,200.32,7.75]
[1756684879509,7.58,200.48,200.32,4.1685258]
[1756684879707,7.58,200.48,200.36,7.75]
[1756684880710,7.58,200.48,200.37,7.75]
[1756684881815,7.58,200.48,200.38,7.75]
[1756684882404,7.58,200.53,200.39,7.75]
[1756684882615,7.58,200.53,200.4,7.75]
[1756684883912,7.58,200.53,200.43,7.75]
[1756684884918,7.58,200.53,200.44,7.75]
[1756684885417,335.44,200.57,200.45,7.75]
[1756684885616,343.02,200.57,200.46,4.1685258]
[1756684886016,343.02,200.57,200.45,7.75]
[1756684886017,7.58,200.56,200.45,7.75]
[1756684886221,7.58,200.56,200.45,11.9185258]
[1756684887722,7.58,200.56,200.47,7.75]
[1756684889818,7.58,200.56,200.45,4.1685258]
[1756684890018,7.58,200.56,200.43,4.1685258]
[1756684891724,7.58,200.56,200.44,11.9185258]
[1756684892224,7.58,200.56,200.45,4.1685258]
[1756684892520,7.58,200.56,200.46,11.9185258]
[1756684892717,7.58,200.56,200.47,7.75]
[1756684893820,131.38,200.6,200.47,11.9185258]
[1756684894223,131.38,200.6,200.49,7.75]
[1756684894422,7.58,200.6,200.49,7.75]
[1756684894625,7.58,200.6,200.51,11.9185258]
[1756684895223,7.58,200.6,200.48,5.58061643]
[1756684895224,335.22,200.63,200.52,7.75]
[1756684896529,7.58,200.62,200.52,7.75]
[1756684899425,7.58,200.62,200.53,4.1685258]
[1756684900121,7.58,200.62,200.52,11.9185258]
[1756684900524,7.58,200.62,200.53,7.77]
[1756684900725,7.58,200.62,200.54,4.1685258]
[1756684901230,7.58,200.62,200.53,11.9385258]
[1756684901431,7.58,200.62,200.53,7.77]
[1756684901626,7.58,200.62,200.49,17.51914223]
[1756684901835,7.96,200.64,200.49,7.77]
[1756684902132,7.96,200.62,200.49,7.77]
[1756684906736,7.96,200.62,200.51,7.77]
[1756684915848,7.96,200.62,200.52,7.77]
[1756684919149,7.96,200.62,200.52,4.16764254]
[1756684919450,7.96,200.62,200.53,7.77]
[1756684922346,0.86763569,200.73,200.45,7.77]
[1756684922347,7.96,200.6,200.45,7.77]
[1756684922544,7.96,200.58,200.45,7.77]
[1756684922744,7.96,200.56,200.45,7.77]
[1756684923556,7.96,200.56,200.38,7.77]
[1756684926757,7.96,200.58,200.39,7.77]
[1756684928661,22.78,200.57,200.34,7.43]
[1756684928863,125.92,200.56,200.34,7.43]
[1756684929053,7.82,200.55,200.34,7.43]
[1756684933964,22.78,200.55,200.3,7.43]
[1756684935256,78.04,200.54,200.3,7.43]
[1756684935460,7.82,200.53,200.3,7.43]
[1756684937771,22.78,200.53,200.3,7.43]
[1756684938169,7.82,200.51,200.3,7.43]
[1756684939566,22.78,200.51,200.3,7.43]
[1756684944273,11.94,200.5,200.3,7.43]
[1756684944471,7.82,200.49,200.3,7.43]
[1756684947875,350.3,200.48,200.3,7.43]
[1756684948077,7.82,200.47,200.3,7.43]
[1756684948484,22.78,200.47,200.3,7.43]
[1756684949080,22.78,200.47,200.23,7.43]
[1756684950189,7.82,200.45,200.23,7.43]
[1756684950389,7.82,200.43,200.23,7.43]
[1756684952090,7.82,200.41,200.23,7.43]
[1756684957992,22.78,200.41,200.23,7.43]
[1756684958290,7.67,200.39,200.23,7.43]
[1756684962596,22.63,200.39,200.23,7.43]
[1756684963392,72.32,200.38,200.23,7.43]
[1756684963592,7.67,200.36,200.23,7.43]
[1756684964090,25.5,200.35,200.23,7.43]
[1756684964392,7.67,200.36,200.23,7.43]
[1756684964592,33.76,200.35,200.23,7.43]
[1756684964788,7.67,200.36,200.23,7.43]
[1756684964988,49.27,200.36,200.23,7.43]
[1756684965887,7.67,200.36,200.23,7.43]
[1756684967099,7.67,200.46,200.23,7.43]
[1756684967399,124.0,200.54,200.23,7.43]
[1756684967597,133.77,200.47,200.23,7.43]
[1756684967793,7.67,200.47,200.23,7.43]
[1756684967997,7.67,200.45,200.23,7.43]
[1756684969000,126.12,200.44,200.23,7.43]
[1756684969691,133.75,200.45,200.23,7.43]
[1756684971987,7.67,200.45,200.23,7.43]
[1756684973097,7.67,200.45,200.25,7.58]
[1756684973801,7.67,200.45,200.26,7.58]
[1756684974994,126.22,200.44,200.26,7.58]
[1756684975494,7.67,200.43,200.26,7.58]
[1756684975900,45.63,200.47,200.26,7.58]
[1756684979701,7.67,200.46,200.28,7.58]
[1756684979901,37.96,200.47,200.29,64.22]
[1756684980202,7.67,200.46,200.3,7.58]
[1756684980403,52.31,200.46,200.3,7.58]
[1756684981100,7.67,200.45,200.32,7.58]
[1756684984202,7.67,200.45,200.34,7.58]
[1756684985905,7.67,200.45,200.26,7.58]
[1756684986699,7.67,200.45,200.27,5.58061643]
[1756684987003,7.67,200.48,200.28,7.58]
[1756684988102,7.67,200.48,200.29,126.92]
[1756684988404,8.07,200.48,200.3,7.49]
[1756684989700,8.07,200.48,200.32,7.49]
[1756684989903,8.07,200.48,200.34,7.49]
[1756684990207,8.07,200.48,200.35,52.68]
[1756684990599,8.07,200.48,200.36,7.49]
[1756684991302,15.85,200.48,200.27,7.49]
[1756684991497,7.78,200.48,200.27,134.53]
[1756684991798,8.07,200.47,200.27,134.53]
[1756684992004,8.07,200.47,200.27,7.49]
[1756684993607,23.03,200.47,200.27,7.49]
[1756684993810,14.96,200.44,200.24,335.44]
[1756684994204,8.07,200.43,200.24,335.44]
[1756684994508,8.07,200.45,200.24,335.44]
[1756684995006,350.32,200.46,200.25,7.49]
[1756684995203,8.07,200.45,200.25,7.49]
[1756684995799,127.04,200.44,200.25,7.49]
[1756684995999,8.07,200.43,200.25,7.49]
[1756685000310,8.07,200.44,200.27,7.49]
[1756685004516,47.16,200.43,200.27,7.49]
[1756685004814,8.07,200.42,200.27,7.49]
[1756685011019,8.07,200.4,200.27,7.49]
[1756685029234,7.87,200.44,200.27,7.49]
[1756685030535,7.87,200.44,200.28,7.95]
[1756685033231,22.83,200.44,200.23,7.95]
[1756685037937,7.87,200.44,200.23,7.95]
[1756685038536,22.83,200.42,200.23,7.95]
[1756685041644,22.83,200.42,200.17,7.95]
[1756685042843,14.96,200.38,200.17,7.95]
[1756685043037,7.87,200.35,200.17,7.95]
[1756685043233,343.37,200.35,200.17,7.95]
[1756685044636,358.33,200.35,200.17,7.95]
[1756685046239,358.33,200.35,200.13,8.81910916]
[1756685048844,7.97,200.33,200.13,7.95]
[1756685049041,75.14703547,200.33,200.13,7.95]
[1756685050943,90.10703547,200.33,200.13,7.95]
[1756685058251,22.93,200.3,200.13,7.95]
[1756685060750,7.97,200.27,200.13,7.95]
[1756685061456,22.93,200.27,200.1,7.92]
[1756685065856,7.97,200.27,200.1,7.92]
[1756685066356,29.5,200.26,200.1,7.92]
[1756685066856,7.97,200.27,200.1,7.92]
[1756685067360,28.02,200.26,200.1,7.92]
[1756685068160,7.97,200.25,200.1,7.92]
[1756685069557,23.67,200.25,200.1,7.92]
[1756685069757,38.59,200.25,200.1,7.92]
[1756685073556,7.97,200.25,200.1,7.92]
[1756685073764,7.97,200.23,200.1,7.92]
[1756685074062,7.97,200.21,200.1,7.92]
[1756685074262,54.28,200.2,200.1,7.92]
[1756685074458,7.97,200.19,200.1,7.92]
[1756685079468,14.78,200.18,200.1,7.92]
[1756685079861,7.97,200.19,200.1,7.92]
[1756685080061,29.59,200.19,200.1,7.92]
[1756685080262,14.96,200.31,200.1,7.92]
[1756685080472,22.47,200.29,200.1,7.92]
[1756685080758,335.78,200.28,200.1,7.92]
[1756685080965,7.51,200.27,200.1,7.92]
[1756685082267,7.51,200.25,200.1,7.92]
[1756685083960,7.51,200.23,200.1,7.92]
[1756685084161,45.06,200.22,200.1,7.92]
[1756685084363,7.51,200.21,200.1,7.92]
[1756685085461,7.51,200.21,200.1,0.1]
[1756685087161,7.51,200.19,200.02,0.86958695]
[1756685087360,14.96,200.12,199.93,8.04]
[1756685087570,7.51,200.09,199.93,8.04]
[1756685087869,22.47,200.09,199.88,8.04]
[1756685089676,339.84,200.11,199.88,8.04]
[1756685089677,7.51,200.06,199.88,8.04]
[1756685090170,22.47,200.06,199.88,8.04]
[1756685090566,7.51,200.06,199.88,8.04]
[1756685090867,7.51,200.04,199.88,8.04]
[1756685092170,22.47,200.04,199.88,8.04]
[1756685093170,22.47,200.04,199.81,8.04]
[1756685093373,22.47,200.04,199.68,4.36]
[1756685093573,22.47,200.04,199.72,0.87078371]
[1756685093769,22.47,200.04,199.73,8.04]
[1756685094165,14.96,200.02,199.73,8.04]
[1756685094369,14.96,199.94,199.73,8.04]
[1756685094674,65.0,200.01,199.73,8.04]
[1756685094675,370.38367261,199.93,199.73,8.04]
[1756685094866,22.47,199.91,199.73,8.04]
[1756685095067,7.51,199.89,199.73,8.04]
[1756685095274,7.51,199.89,199.67,0.87100165]
[1756685095471,7.51,199.87,199.68,8.04]
[1756685095671,7.51,199.85,199.68,8.04]
[1756685096472,53.6,199.84,199.68,8.04]
[1756685096774,77.13,199.83,199.68,8.04]
[1756685096970,7.51,199.81,199.68,8.04]
[1756685097276,7.51,199.79,199.68,8.04]
[1756685097474,76.72,199.78,199.68,8.04]
[1756685098476,7.51,199.77,199.68,8.04]
[1756685098775,80.0,199.76,199.68,8.04]
[1756685099474,83.12,199.76,199.68,8.04]
[1756685099665,93.61,199.77,199.68,8.04]
[1756685100271,7.51,199.77,199.68,8.04]
[1756685100471,99.11,199.77,199.68,8.04]
[1756685101767,99.11,199.77,199.6,8.04]
[1756685101768,435.35,199.77,199.6,8.04]
[1756685101969,22.47,199.76,199.56,8.04]
[1756685102377,137.37,199.75,199.56,8.04]
[1756685102671,7.51,199.73,199.56,8.04]
[1756685102877,7.51,199.7,199.49,8.04]
[1756685103172,22.47,199.7,199.48,23.19622509]
[1756685103372,14.96,199.64,199.48,23.19622509]
[1756685103569,7.51,199.6,199.48,23.19622509]
[1756685103772,75.16,199.59,199.48,31.23622509]
[1756685104173,7.51,199.58,199.48,31.23622509]
[1756685104369,75.16,199.59,199.48,23.19622509]
[1756685104678,22.47,199.58,199.48,23.19622509]
[1756685104878,7.51,199.55,199.48,23.19622509]
[1756685105173,22.47,199.55,199.48,3.57622509]
[1756685105379,0.5,199.54,199.48,1e-08]
[1756685105579,0.5,199.54,199.29,8.04]
[1756685105869,14.96,199.52,199.36,1.03505541]
[1756685106076,14.96,199.5,199.29,8.04]
[1756685106268,14.96,199.48,199.29,8.04]
[1756685106474,14.96,199.48,199.31,1.03505541]
[1756685106666,14.96,199.46,199.29,8.04]
[1756685106870,80.12,199.45,199.29,8.04]
[1756685107072,95.08,199.45,199.29,8.04]
[1756685107272,95.08,199.45,199.17,0.87315427]
[1756685107273,95.08,199.45,199.24,8.04]
[1756685107472,14.96,199.43,199.24,8.04]
[1756685107669,131.64,199.42,199.33,1.03505541]
[1756685107870,336.46,199.49,199.14,0.87324191]
[1756685107871,0.03,199.48,199.32,8.04]
[1756685108071,103.06,199.47,199.32,8.04]
[1756685108274,103.06,199.47,199.25,7.44]
[1756685108471,0.03,199.46,199.26,1.03505541]
[1756685108668,0.03,199.46,199.15,7.44]
[1756685108876,14.96,199.45,199.15,7.44]
[1756685109376,0.03,199.43,199.15,7.44]
[1756685109568,0.03,199.43,199.14,0.87324191]
[1756685109569,336.46,199.49,199.38,1.03505541]
[1756685109872,132.02,199.48,199.29,7.44]
[1756685110071,132.19,199.47,199.32,7.44]
[1756685110267,0.03,199.46,199.32,7.44]
[1756685110466,132.16,199.47,199.16,7.44]
[1756685110676,0.03,199.46,199.29,1.03505541]
[1756685110875,0.03,199.43,199.29,1.03505541]
[1756685111077,0.03,199.43,199.25,7.44]
[1756685111274,0.03,199.41,199.25,7.44]
[1756685111479,112.14,199.4,199.34,1.03505541]
[1756685111674,112.14,199.4,199.35,8.47505541]
[1756685111875,0.03,199.41,199.36,1.03505541]
[1756685112178,88.36,199.4,199.36,1.03505541]
[1756685112375,0.03,199.44,199.31,7.44]
[1756685112576,0.03,199.6,199.43,1.03505541]
[1756685112876,1778.48,199.61,199.42,7.44]
[1756685112877,0.03,199.58,199.42,7.44]
[1756685113075,14.96,199.58,199.35,7.44]
[1756685113273,85.139,199.47,199.27,70.2456]
[1756685113475,85.139,199.47,199.33,1.03505541]
[1756685113476,0.03,199.45,199.33,1.03505541]
[1756685113678,0.03,199.45,199.36,1.03505541]
[1756685113874,0.03,199.45,199.28,7.44]
[1756685114075,0.03,199.45,199.36,1.03505541]
[1756685114275,0.03,199.45,199.39,1.03505541]
[1756685114580,336.89,199.63,199.44,7.44]
[1756685114969,336.86,199.63,199.44,7.44]
[1756685115175,0.03,199.68,199.44,7.44]
[1756685115479,133.61,199.68,199.45,133.74]
[1756685115775,0.03,199.74,199.46,7.44]
[1756685115979,0.03,199.79,199.46,7.44]
[1756685116278,0.03,199.84,199.46,22.4]
[1756685116477,133.98,199.83,199.49,7.44]
[1756685116680,133.98,199.83,199.5,133.98]
[1756685116869,0.03,199.82,199.51,44.4]
[1756685117073,0.03,199.82,199.52,7.44]
[1756685117477,0.03,199.82,199.53,4.34]
[1756685117670,0.03,199.82,199.54,7.44]
[1756685117877,148.94,199.83,199.54,7.44]
[1756685118279,0.03,199.82,199.54,7.44]
[1756685118982,78.49,199.82,199.54,336.82]
[1756685119178,78.49,199.82,199.55,7.44]
[1756685119379,0.03,199.81,199.57,7.44]
[1756685119578,78.46,199.82,199.57,7.44]
[1756685119579,93.42,199.82,199.57,7.44]
[1756685119779,0.03,199.81,199.57,7.44]
[1756685120076,0.03,199.79,199.57,7.44]
[1756685120276,0.03,199.77,199.57,7.44]
[1756685120487,5.2,199.76,199.57,7.44]
[1756685120874,336.81,199.75,199.57,7.44]
[1756685121178,336.81,199.75,199.38,134.52]
[1756685121179,0.03,199.71,199.38,134.52]
[1756685121382,0.03,199.71,199.39,7.44]
[1756685122375,0.03,199.7,199.39,7.44]
[1756685123378,0.871809,199.72,199.39,7.44]
[1756685123577,336.81,199.75,199.39,7.44]
[1756685123980,134.94,199.74,199.39,7.44]
[1756685124380,134.94,199.74,199.39,14.96]
[1756685124580,134.94,199.74,199.43,7.44]
[1756685124786,0.03,199.81,199.47,7.44]
[1756685124985,134.92,199.83,199.49,7.44]
[1756685125490,0.03,199.82,199.49,7.44]
[1756685125681,0.03,199.82,199.51,7.44]
[1756685125876,0.03,199.82,199.52,62.0]
[1756685126082,336.76,199.89,199.53,7.44]
[1756685126284,0.87139423,199.87,199.53,7.44]
[1756685126478,0.87139423,199.87,199.54,135.08]
[1756685126679,0.87139423,199.87,199.55,7.44]
[1756685127389,0.5,199.86,199.55,7.44]
[1756685127685,0.5,199.86,199.57,7.44]
[1756685127887,0.5,199.86,199.56,4.3]
[1756685127888,336.76,199.89,199.59,7.44]
[1756685128681,336.76,199.89,199.61,7.44]
[1756685129083,135.1,199.94,199.63,7.44]
[1756685129487,135.97111067,199.94,199.65,7.44]
[1756685129880,80.96,199.93,199.65,7.44]
[1756685130084,0.87111067,199.94,199.65,7.44]
[1756685130390,48.72,199.93,199.65,7.44]
[1756685130784,0.87111067,199.94,199.65,7.44]
[1756685130785,0.87111067,199.94,199.66,7.44]
[1756685130980,29.52,199.92,199.66,7.44]
[1756685131483,14.96,199.9,199.66,7.44]
[1756685131883,9.42,199.89,199.66,7.44]
[1756685132084,5.86,199.88,199.66,7.44]
[1756685132987,0.87111067,199.94,199.66,7.44]
[1756685133495,0.52,199.93,199.66,7.44]
[1756685134392,0.87111067,199.94,199.66,7.44]
[1756685134592,336.66,200.01,199.66,7.44]
[1756685134891,135.5,200.0,199.66,7.44]
[1756685135295,472.12,200.01,199.68,7.44]
[1756685135493,336.66,200.01,199.69,7.44]
[1756685135690,472.1,200.01,199.69,7.44]
[1756685135890,472.1,200.01,199.69,14.96]
[1756685136196,1566.94,200.13,199.72,7.44]
[1756685136197,135.56,200.06,199.72,7.44]
[1756685136492,135.56,200.06,199.75,7.44]
[1756685136690,135.56,200.06,199.73,336.5]
[1756685136691,135.56,200.06,199.77,7.44]
[1756685137285,336.5,200.13,199.77,7.44]
[1756685137585,135.62,200.12,199.77,7.44]
[1756685137785,336.5,200.13,199.79,7.44]
[1756685137984,135.58,200.12,199.81,7.44]
[1756685138987,136.45030461,200.12,199.81,7.44]
[1756685139191,136.45030461,200.12,199.83,7.44]
[1756685139897,18.6811666,200.11,199.83,7.44]
[1756685140098,3.7211666,200.1,199.83,7.44]
[1756685140298,3.7211666,200.09,199.83,7.44]
[1756685140599,142.6811666,200.08,199.76,4.44]
[1756685140796,88.4411666,200.07,199.77,7.44]
[1756685140994,124.0,200.08,199.77,7.44]
[1756685141294,74.12,200.07,199.77,7.44]
[1756685141494,44.3,200.06,199.77,7.44]
[1756685141689,0.87030461,200.12,199.77,7.44]
[1756685141998,227.68,200.11,199.77,7.44]
[1756685142402,18.67542467,200.1,199.77,7.44]
[1756685142588,3.71542467,200.09,199.77,7.44]
[1756685142793,3.71542467,200.08,199.77,7.44]
[1756685142999,124.0,200.07,199.77,7.44]
[1756685143501,75.74,200.06,199.77,7.44]
[1756685144294,0.87030461,200.12,199.77,7.44]
[1756685144500,102.84,200.11,199.77,7.44]
[1756685144801,3.71127673,200.1,199.79,7.44]
[1756685145095,3.71097843,200.09,199.74,7.44]
[1756685145302,3.71097843,200.08,199.74,7.44]
[1756685145602,14.96,200.08,199.74,7.44]
[1756685146597,14.96,200.06,199.74,7.44]
[1756685147599,29.94,200.09,199.74,7.44]
[1756685148604,29.94,200.07,199.74,7.44]
[1756685148804,29.94,200.05,199.74,7.44]
[1756685148997,14.96,200.03,199.74,7.44]
[1756685149193,14.96,200.01,199.74,7.44]
[1756685149392,14.96,199.99,199.62,7.44]
[1756685149599,14.96,199.97,199.63,7.44]
[1756685149801,14.96,199.95,199.63,7.44]